Workbook

Sheet Data
A1: Input cell
A2: output cell
A3: Name | B3: ISIN | C3: Coupon | D3: Bid | E3: Ask | F3: Maturity | G3: Settlement date | H3: Next coupon date | I3: Yield | J3: Clean Price | K3: Price | L3: Vasicek price | M3: Squared error
A4: RGKB 1041 | B4: SE0000412389 | C4: 0.0675 | D4: 0.79 | E4: 0.775 | F4: 2014-05-05 | G4: =DATE(2011,12,19) -> 2011-12-19 | H4: =DATE(2012,5,5) -> 2012-05-05 | I4: =AVERAGE(D4,E4)/100 -> 0.007825 | J4: =PRICE(G4,F4,C4,I4,100,1,$B$15) -> 113.9978015 | K4: =((COUPDAYS(G4,F4,1,$B$15)-COUPDAYSNC(G4,F4,1,$B$15))/COUPDAYS(G4,F4,1,$B$15)*100*C4/1)+J4 -> 118.1978015 | L4: =vasicek($B$16,$B$17,$B$18,$B$19,F4,G4,$B$15,H4,C4,$B$20) -> 118.2196358 | M4: =(K4-L4)^2 -> 0.0004767360885
A5: RGKB 1046 | B5: SE0000909640 | C5: 0.055 | D5: 1.043 | E5: 1.055 | F5: 2012-10-08 | G5: =DATE(2011,12,19) -> 2011-12-19 | H5: =DATE(2012,10,8) -> 2012-10-08 | I5: =AVERAGE(D5,E5)/100 -> 0.01049 | J5: =PRICE(G5,F5,C5,I5,100,1,$B$15) -> 103.5342667 | K5: =((COUPDAYS(G5,F5,1,$B$15)-COUPDAYSNC(G5,F5,1,$B$15))/COUPDAYS(G5,F5,1,$B$15)*100*C5/1)+J5 -> 104.618989 | L5: =vasicek($B$16,$B$17,$B$18,$B$19,F5,G5,$B$15,H5,C5,$B$20) -> 105.0444902 | M5: =(K5-L5)^2 -> 0.1810512601
A6: RGKB 1047 | B6: SE0001149311 | C6: 0.05 | D6: 1.471 | E6: 1.46 | F6: 2020-12-01 | G6: 2011-12-19 | H6: =DATE(2012,12,1) -> 2012-12-01 | I6: 0.014655 | J6: 129.4438427 | K6: 129.6938427 | L6: =vasicek($B$16,$B$17,$B$18,$B$19,F6,G6,$B$15,H6,C6,$B$20) -> 129.8626639 | M6: 0.02850059348
A7: RGKB 1049 | B7: SE0001250135 | C7: 0.045 | D7: 0.88 | E7: 0.881 | F7: 2015-08-12 | G7: 2011-12-19 | H7: =DATE(2012,8,12) -> 2012-08-12 | I7: 0.008805 | J7: 112.9309442 | K7: 114.5184442 | L7: 114.2754929 | M7: 0.05902528923
A8: RGKB 1050 | B8: SE0001517699 | C8: 0.03 | D8: 1 | E8: 0.987 | F8: 2016-07-12 | G8: 2011-12-19 | H8: =DATE(2012,7,12) -> 2012-07-12 | I8: 0.009935 | J8: 108.9060981 | K8: 110.2144315 | L8: 109.9165526 | M8: 0.08873181962
A9: RGKB 1051 | B9: SE0001811399 | C9: 0.0375 | D9: 1.204 | E9: 1.19 | F9: 2017-08-12 | G9: 2011-12-19 | H9: =DATE(2012,8,12) -> 2012-08-12 | I9: 0.01197 | J9: 113.855751 | K9: 115.1786677 | L9: 115.3296358 | M9: 0.02279138231
A10: RGKB 1052 | B10: SE0002241083 | C10: 0.0425 | D10: 1.343 | E10: 1.325 | F10: 2019-03-12 | G10: 2011-12-19 | H10: =DATE(2012,3,12) -> 2012-03-12 | I10: 0.01334 | J10: 119.9677521 | K10: 123.237891 | L10: 123.3610494 | M10: 0.01516799528
A11: RGKB 1053 | B11: SE0002829192 | C11: 0.035 | D11: 2.01 | E11: 1.975 | F11: 2039-03-30 | G11: 2011-12-19 | H11: =DATE(2012,3,30) -> 2012-03-30 | I11: 0.019925 | J11: 131.4832342 | K11: 134.0012898 | L11: =vasicek($B$16,$B$17,$B$18,$B$19,F11,G11,$B$15,H11,C11,$B$20) -> 134.0009682 | M11: 1.034130016e-07
A12: RGKB 1054 | B12: SE0003784461 | C12: 0.035 | D12: 1.555 | E12: 1.545 | F12: 2022-06-01 | G12: 2011-12-19 | H12: =DATE(2012,6,1) -> 2012-06-01 | I12: 0.0155 | J12: 118.6731024 | K12: 120.5981024 | L12: 120.4447617 | M12: 0.02351337686
A13: RGKB 1055 | B13: SE0004194025 | C13: 0.015 | D13: 0.695 | E13: 0.7 | F13: 2013-08-30 | G13: 2011-12-19 | H13: =DATE(2012,8,30) -> 2012-08-30 | I13: 0.006975 | J13: 101.3482181 | K13: 101.8023848 | L13: 101.8309909 | M13: 0.0008183078395
A14: Parameters | L14: Sum | M14: =SUM(M4:M13) -> 0.4200768642
A15: Day count Basis | B15: 4
A16: a | B16: 0.03665650862
A17: b | B17: 0.003621544194
A18: r(0) | B18: 0.004040136133
A19: volatility | B19: 0.01710948433
A20: Face value | B20: 100

Sheet Graphs
A1: Parameters | B1: a | C1: b/a | D1: r(0) | E1: sigma
B2: =Data!B16 -> 0.03665650862 | C2: =Data!B17/Data!B16 -> 0.09879675752 | D2: =Data!B18 -> 0.004040136133 | E2: =Data!$B$19 -> 0.01710948433
A4: time | B4: E[r] | C4: Equilibrium | D4: discount | E4: Var r | F4: Forward
A5: 0 | B5: =$C$2+($D$2-$C$2)*EXP(-$B$2*A5) -> 0.004040136133 | C5: =$C$2 -> 0.09879675752 | D5: =EXP(-B5*A5) -> 1 | E5: =$E$2^2/(2*$B$2)*(1-EXP(-2*$B$2*A5)) -> 0 | F5: =D2 -> 0.004040136133
A6: 0.2 | B6: =$C$2+($D$2-$C$2)*EXP(-$B$2*A6) -> 0.004732285238 | C6: =$C$2 -> 0.09879675752 | D6: =EXP(-B6*A6) -> 0.9990539907 | E6: =$E$2^2/(2*$B$2)*(1-EXP(-2*$B$2*A6)) -> 5.811975608e-05 | F6: =1/(A6-A5)*((1+B6)^A6/((1+B5)^A5)-1) -> 0.004723352779
A7: 0.4 | B7: 0.005419378544 | C7: 0.09879675752 | D7: =EXP(-B7*A7) -> 0.9978345965 | E7: 0.0001153935424 | F7: =1/(A7-A6)*((1+B7)^A7/((1+B6)^A6)-1) -> 0.006092078258
A8: 0.6 | B8: 0.006101452982 | C8: 0.09879675752 | D8: 0.996345821 | E8: 0.0001718336727 | F8: 0.007444787347
A9: 0.8 | B9: 0.006778545211 | C9: 0.09879675752 | D9: 0.9945918409 | E9: 0.0002274522813 | F9: 0.008781655951
A10: 1 | B10: 0.007450691625 | C10: 0.09879675752 | D10: 0.992576996 | E10: 0.0002822613259 | F10: 0.01010285799
A11: 1.2 | B11: 0.00811792835 | C11: 0.09879675752 | D11: 0.9903057808 | E11: 0.0003362725903 | F11: 0.01140856544
A12: 1.4 | B12: 0.008780291249 | C12: 0.09879675752 | D12: 0.9877828353 | E12: 0.0003894976866 | F12: 0.01269894833
A13: 1.6 | B13: 0.009437815922 | C13: 0.09879675752 | D13: 0.9850129354 | E13: 0.0004419480581 | F13: 0.01397417477
A14: 1.8 | B14: 0.01009053771 | C14: 0.09879675752 | D14: 0.9820009847 | E14: 0.0004936349814 | F14: 0.01523441102
A15: 2 | B15: 0.0107384917 | C15: 0.09879675752 | D15: 0.9787520048 | E15: 0.0005445695688 | F15: 0.01647982142
A16: 2.2 | B16: 0.01138171271 | C16: 0.09879675752 | D16: 0.9752711267 | E16: 0.0005947627712 | F16: 0.01771056853
A17: 2.4 | B17: 0.01202023532 | C17: 0.09879675752 | D17: 0.9715635823 | E17: 0.0006442253799 | F17: 0.01892681305
A18: 2.6 | B18: 0.01265409384 | C18: 0.09879675752 | D18: 0.9676346951 | E18: 0.0006929680291 | F18: =1/(A18-A17)*((1+B18)^A18/((1+B17)^A17)-1) -> 0.02012871391
A19: 2.8 | B19: 0.01328332235 | C19: 0.09879675752 | D19: 0.9634898723 | E19: 0.0007410011983 | F19: =1/(A19-A18)*((1+B19)^A19/((1+B18)^A18)-1) -> 0.02131642824
A20: 3 | B20: 0.01390795466 | C20: 0.09879675752 | D20: 0.9591345956 | E20: 0.0007883352144 | F20: 0.02249011143
A21: 3.2 | B21: 0.01452802435 | C21: 0.09879675752 | D21: 0.9545744137 | E21: 0.0008349802541 | F21: 0.02364991716
A22: 3.4 | B22: 0.01514356475 | C22: 0.09879675752 | D22: 0.9498149336 | E22: 0.0008809463457 | F22: 0.02479599736
A23: 3.6 | B23: 0.01575460893 | C23: 0.09879675752 | D23: 0.9448618127 | E23: 0.0009262433719 | F23: 0.0259285023
A24: 3.8 | B24: 0.01636118975 | C24: 0.09879675752 | D24: 0.9397207512 | E24: 0.0009708810713 | F24: 0.02704758057
A25: 4 | B25: 0.0169633398 | C25: 0.09879675752 | D25: 0.9343974843 | E25: 0.001014869041 | F25: 0.02815337911
A26: 4.2 | B26: 0.01756109145 | C26: 0.09879675752 | D26: 0.9288977748 | E26: 0.001058216738 | F26: 0.02924604324
A27: 4.4 | B27: 0.01815447683 | C27: 0.09879675752 | D27: 0.9232274058 | E27: 0.001100933481 | F27: 0.03032571666
A28: 4.6 | B28: 0.01874352783 | C28: 0.09879675752 | D28: 0.9173921735 | E28: 0.001143028456 | F28: 0.03139254148
A29: 4.8 | B29: 0.01932827611 | C29: 0.09879675752 | D29: 0.9113978809 | E29: 0.001184510712 | F29: 0.03244665824
A30: 5 | B30: 0.01990875309 | C30: 0.09879675752 | D30: 0.9052503303 | E30: 0.001225389167 | F30: 0.03348820594
A31: 5.2 | B31: 0.02048498999 | C31: 0.09879675752 | D31: 0.8989553177 | E31: 0.001265672611 | F31: 0.03451732202
A32: 5.4 | B32: 0.02105701777 | C32: 0.09879675752 | D32: 0.8925186261 | E32: 0.001305369703 | F32: 0.03553414244
A33: 5.6 | B33: 0.02162486718 | C33: 0.09879675752 | D33: 0.8859460196 | E33: 0.00134448898 | F33: 0.03653880162
A34: 5.8 | B34: 0.02218856874 | C34: 0.09879675752 | D34: 0.8792432377 | E34: 0.00138303885 | F34: 0.03753143254
A35: 6 | B35: 0.02274815274 | C35: 0.09879675752 | D35: 0.8724159897 | E35: 0.001421027603 | F35: 0.03851216669
A36: 6.2 | B36: 0.02330364926 | C36: 0.09879675752 | D36: 0.8654699495 | E36: 0.001458463406 | F36: 0.03948113412
A37: 6.4 | B37: 0.02385508816 | C37: 0.09879675752 | D37: 0.8584107502 | E37: 0.001495354307 | F37: 0.04043846347
A38: 6.6 | B38: 0.02440249908 | C38: 0.09879675752 | D38: 0.8512439796 | E38: 0.001531708238 | F38: 0.04138428194
A39: 6.8 | B39: 0.02494591144 | C39: 0.09879675752 | D39: 0.8439751754 | E39: 0.001567533014 | F39: 0.04231871536
A40: 7 | B40: 0.02548535445 | C40: 0.09879675752 | D40: 0.8366098207 | E40: 0.001602836338 | F40: 0.04324188818
A41: 7.2 | B41: 0.0260208571 | C41: 0.09879675752 | D41: 0.82915334 | E41: 0.0016376258 | F41: 0.04415392346
A42: 7.4 | B42: 0.02655244818 | C42: 0.09879675752 | D42: 0.8216110948 | E42: 0.001671908879 | F42: 0.04505494295
A43: 7.6 | B43: 0.02708015625 | C43: 0.09879675752 | D43: 0.8139883806 | E43: 0.001705692947 | F43: 0.04594506705
A44: 7.8 | B44: 0.02760400968 | C44: 0.09879675752 | D44: 0.8062904226 | E44: 0.001738985266 | F44: 0.04682441486
A45: 8 | B45: 0.02812403663 | C45: 0.09879675752 | D45: 0.7985223729 | E45: 0.001771792994 | F45: 0.04769310415
A46: 8.2 | B46: 0.02864026505 | C46: 0.09879675752 | D46: 0.790689307 | E46: 0.001804123185 | F46: 0.04855125144
A47: 8.4 | B47: 0.02915272268 | C47: 0.09879675752 | D47: 0.7827962214 | E47: 0.00183598279 | F47: 0.04939897197
A48: 8.6 | B48: 0.02966143706 | C48: 0.09879675752 | D48: 0.7748480303 | E48: 0.001867378658 | F48: 0.05023637971
A49: 8.8 | B49: 0.03016643555 | C49: 0.09879675752 | D49: 0.7668495637 | E49: 0.00189831754 | F49: 0.05106358742
A50: 9 | B50: 0.03066774527 | C50: 0.09879675752 | D50: 0.7588055647 | E50: 0.001928806086 | F50: 0.0518807066
A51: 9.2 | B51: 0.03116539318 | C51: 0.09879675752 | D51: 0.7507206874 | E51: 0.001958850853 | F51: 0.05268784756
A52: 9.4 | B52: 0.03165940603 | C52: 0.09879675752 | D52: 0.7425994954 | E52: 0.001988458299 | F52: 0.05348511942
A53: 9.6 | B53: 0.03214981036 | C53: 0.09879675752 | D53: 0.7344464597 | E53: 0.00201763479 | F53: 0.05427263009
A54: 9.8 | B54: 0.03263663254 | C54: 0.09879675752 | D54: 0.7262659573 | E54: 0.002046386598 | F54: 0.05505048634
A55: 10 | B55: 0.03311989873 | C55: 0.09879675752 | D55: 0.7180622695 | E55: 0.002074719906 | F55: 0.05581879376
A56: 10.2 | B56: 0.0335996349 | C56: 0.09879675752 | D56: 0.7098395815 | E56: 0.002102640805 | F56: 0.0565776568
A57: 10.4 | B57: 0.03407586685 | C57: 0.09879675752 | D57: 0.7016019804 | E57: 0.002130155298 | F57: 0.05732717879
A58: 10.6 | B58: 0.03454862016 | C58: 0.09879675752 | D58: 0.693353455 | E58: 0.002157269299 | F58: 0.05806746195
A59: 10.8 | B59: 0.03501792025 | C59: 0.09879675752 | D59: 0.6850978949 | E59: 0.00218398864 | F59: 0.05879860737
A60: 11 | B60: 0.03548379234 | C60: 0.09879675752 | D60: 0.6768390897 | E60: 0.002210319063 | F60: 0.05952071506
A61: 11.2 | B61: 0.03594626147 | C61: 0.09879675752 | D61: 0.6685807289 | E61: 0.002236266231 | F61: 0.06023388397
A62: 11.4 | B62: 0.03640535249 | C62: 0.09879675752 | D62: 0.6603264015 | E62: 0.002261835721 | F62: 0.06093821195
A63: 11.6 | B63: 0.03686109009 | C63: 0.09879675752 | D63: 0.6520795958 | E63: 0.002287033031 | F63: 0.06163379583
A64: 11.8 | B64: 0.03731349876 | C64: 0.09879675752 | D64: 0.6438436993 | E64: 0.002311863578 | F64: 0.06232073135
A65: 12 | B65: 0.03776260281 | C65: 0.09879675752 | D65: 0.6356219989 | E65: 0.002336332701 | F65: 0.06299911328
A66: 12.2 | B66: 0.03820842638 | C66: 0.09879675752 | D66: 0.6274176812 | E66: 0.002360445661 | F66: 0.06366903532
A67: 12.4 | B67: 0.03865099344 | C67: 0.09879675752 | D67: 0.6192338328 | E67: 0.002384207641 | F67: 0.06433059018
A68: 12.6 | B68: 0.03909032777 | C68: 0.09879675752 | D68: 0.6110734404 | E68: 0.00240762375 | F68: 0.06498386959
A69: 12.8 | B69: 0.03952645299 | C69: 0.09879675752 | D69: 0.6029393919 | E69: 0.002430699024 | F69: 0.06562896426
A70: 13 | B70: =$C$2+($D$2-$C$2)*EXP(-$B$2*A70) -> 0.03995939253 | C70: =$C$2 -> 0.09879675752 | D70: =EXP(-B70*A70) -> 0.5948344765 | E70: =$E$2^2/(2*$B$2)*(1-EXP(-2*$B$2*A70)) -> 0.002453438422 | F70: 0.06626596396
A71: 13.2 | B71: 0.04038916966 | C71: 0.09879675752 | D71: 0.5867613858 | E71: 0.002475846834 | F71: 0.06689495748
A72: 13.4 | B72: 0.0408158075 | C72: 0.09879675752 | D72: 0.5787227144 | E72: 0.002497929077 | F72: 0.06751603266
A73: 13.6 | B73: 0.04123932896 | C73: 0.09879675752 | D73: 0.5707209608 | E73: 0.002519689899 | F73: 0.0681292764
A74: 13.8 | B74: 0.04165975681 | C74: 0.09879675752 | D74: 0.5627585287 | E74: 0.002541133979 | F74: 0.06873477467
A75: 14 | B75: 0.04207711365 | C75: 0.09879675752 | D75: 0.5548377274 | E75: 0.002562265927 | F75: 0.06933261251
A76: 14.2 | B76: 0.0424914219 | C76: 0.09879675752 | D76: 0.5469607736 | E76: 0.002583090286 | F76: 0.06992287407
A77: 14.4 | B77: 0.04290270385 | C77: 0.09879675752 | D77: 0.5391297921 | E77: 0.002603611533 | F77: 0.07050564258
A78: 14.6 | B78: 0.04331098159 | C78: 0.09879675752 | D78: 0.5313468172 | E78: 0.00262383408 | F78: 0.07108100039
A79: 14.8 | B79: 0.04371627707 | C79: 0.09879675752 | D79: 0.5236137941 | E79: 0.002643762276 | F79: 0.07164902897
A80: 15 | B80: 0.04411861207 | C80: 0.09879675752 | D80: 0.51593258 | E80: 0.002663400404 | F80: 0.07220980891
A81: 15.2 | B81: 0.04451800821 | C81: 0.09879675752 | D81: 0.5083049456 | E81: 0.002682752687 | F81: 0.07276341996
A82: 15.4 | B82: 0.04491448697 | C82: 0.09879675752 | D82: 0.5007325767 | E82: 0.002701823285 | F82: 0.07330994101
A83: 15.6 | B83: 0.04530806966 | C83: 0.09879675752 | D83: 0.4932170754 | E83: 0.002720616298 | F83: =1/(A83-A82)*((1+B83)^A83/((1+B82)^A82)-1) -> 0.07384945009
A84: 15.8 | B84: 0.04569877742 | C84: 0.09879675752 | D84: 0.4857599616 | E84: 0.002739135767 | F84: 0.07438202443
A85: 16 | B85: 0.04608663126 | C85: 0.09879675752 | D85: 0.4783626749 | E85: 0.002757385674 | F85: 0.07490774041
A86: 16.2 | B86: 0.04647165202 | C86: 0.09879675752 | D86: 0.4710265756 | E86: 0.002775369942 | F86: 0.07542667361
A87: 16.4 | B87: 0.0468538604 | C87: 0.09879675752 | D87: 0.4637529469 | E87: 0.002793092437 | F87: 0.0759388988
A88: 16.6 | B88: 0.04723327695 | C88: 0.09879675752 | D88: 0.4565429959 | E88: 0.002810556971 | F88: 0.07644448996
A89: 16.8 | B89: 0.04760992204 | C89: 0.09879675752 | D89: 0.4493978559 | E89: 0.002827767297 | F89: 0.07694352028
A90: 17 | B90: 0.04798381594 | C90: 0.09879675752 | D90: 0.4423185872 | E90: 0.002844727116 | F90: 0.07743606217
A91: 17.2 | B91: 0.04835497873 | C91: 0.09879675752 | D91: 0.4353061797 | E91: 0.002861440074 | F91: 0.07792218726
A92: 17.4 | B92: 0.04872343036 | C92: 0.09879675752 | D92: 0.4283615537 | E92: 0.002877909764 | F92: 0.07840196645
A93: 17.6 | B93: 0.04908919065 | C93: 0.09879675752 | D93: 0.4214855623 | E93: 0.002894139728 | F93: 0.07887546986
A94: 17.8 | B94: 0.04945227923 | C94: 0.09879675752 | D94: 0.4146789924 | E94: 0.002910133454 | F94: 0.07934276687
A95: 18 | B95: 0.04981271565 | C95: 0.09879675752 | D95: 0.407942567 | E95: 0.002925894382 | F95: 0.07980392612
A96: 18.2 | B96: 0.05017051925 | C96: 0.09879675752 | D96: 0.4012769465 | E96: 0.002941425899 | F96: 0.08025901554
A97: 18.4 | B97: 0.05052570928 | C97: 0.09879675752 | D97: 0.3946827305 | E97: 0.002956731345 | F97: 0.08070810231
A98: 18.6 | B98: 0.05087830483 | C98: 0.09879675752 | D98: 0.3881604594 | E98: 0.002971814011 | F98: 0.08115125293
A99: 18.8 | B99: 0.05122832484 | C99: 0.09879675752 | D99: 0.381710616 | E99: 0.002986677139 | F99: 0.08158853318
A100: 19 | B100: 0.05157578814 | C100: 0.09879675752 | D100: 0.3753336277 | E100: 0.003001323925 | F100: 0.08202000813
A101: 19.2 | B101: 0.0519207134 | C101: 0.09879675752 | D101: 0.3690298672 | E101: 0.003015757518 | F101: 0.08244574217
A102: 19.4 | B102: 0.05226311915 | C102: 0.09879675752 | D102: 0.3627996551 | E102: 0.00302998102 | F102: 0.08286579903
A103: 19.6 | B103: 0.05260302379 | C103: 0.09879675752 | D103: 0.3566432608 | E103: 0.003043997491 | F103: 0.08328024173
A104: 19.8 | B104: 0.05294044561 | C104: 0.09879675752 | D104: 0.3505609045 | E104: 0.003057809943 | F104: 0.08368913264
A105: 20 | B105: 0.05327540273 | C105: 0.09879675752 | D105: 0.3445527586 | E105: 0.003071421346 | F105: 0.08409253347
A106: 20.2 | B106: 0.05360791316 | C106: 0.09879675752 | D106: 0.3386189497 | E106: 0.003084834626 | F106: 0.08449050528
A107: 20.4 | B107: 0.05393799477 | C107: 0.09879675752 | D107: 0.3327595595 | E107: 0.003098052668 | F107: 0.08488310848
A108: 20.6 | B108: 0.05426566531 | C108: 0.09879675752 | D108: 0.3269746267 | E108: 0.003111078313 | F108: 0.08527040284
A109: 20.8 | B109: 0.05459094237 | C109: 0.09879675752 | D109: 0.3212641486 | E109: 0.003123914361 | F109: 0.08565244749
A110: 21 | B110: 0.05491384345 | C110: 0.09879675752 | D110: 0.3156280826 | E110: 0.003136563573 | F110: 0.08602930096
A111: 21.2 | B111: 0.0552343859 | C111: 0.09879675752 | D111: 0.3100663472 | E111: 0.003149028667 | F111: 0.08640102113
A112: 21.4 | B112: 0.05555258695 | C112: 0.09879675752 | D112: 0.3045788243 | E112: 0.003161312324 | F112: 0.08676766529
A113: 21.6 | B113: 0.05586846371 | C113: 0.09879675752 | D113: 0.2991653597 | E113: 0.003173417184 | F113: 0.08712929012
A114: 21.8 | B114: 0.05618203314 | C114: 0.09879675752 | D114: 0.2938257653 | E114: 0.003185345851 | F114: 0.08748595171
A115: 22 | B115: 0.05649331211 | C115: 0.09879675752 | D115: 0.2885598199 | E115: 0.003197100889 | F115: 0.08783770553
A116: 22.2 | B116: 0.05680231734 | C116: 0.09879675752 | D116: 0.2833672711 | E116: 0.003208684824 | F116: 0.08818460649
A117: 22.4 | B117: 0.05710906545 | C117: 0.09879675752 | D117: 0.278247836 | E117: 0.003220100148 | F117: 0.08852670892
A118: 22.6 | B118: 0.05741357291 | C118: 0.09879675752 | D118: 0.273201203 | E118: 0.003231349315 | F118: 0.08886406657
A119: 22.8 | B119: 0.05771585611 | C119: 0.09879675752 | D119: 0.2682270329 | E119: 0.003242434743 | F119: 0.08919673261
A120: 23 | B120: 0.05801593128 | C120: 0.09879675752 | D120: 0.2633249602 | E120: 0.003253358815 | F120: 0.08952475967
A121: 23.2 | B121: 0.05831381455 | C121: 0.09879675752 | D121: 0.2584945942 | E121: 0.003264123881 | F121: 0.08984819981
A122: 23.4 | B122: 0.05860952193 | C122: 0.09879675752 | D122: 0.2537355203 | E122: 0.003274732255 | F122: 0.09016710456
A123: 23.6 | B123: 0.05890306933 | C123: 0.09879675752 | D123: 0.2490473012 | E123: 0.003285186216 | F123: 0.09048152488
A124: 23.8 | B124: 0.0591944725 | C124: 0.09879675752 | D124: 0.2444294779 | E124: 0.003295488014 | F124: 0.09079151123
A125: 24 | B125: 0.05948374713 | C125: 0.09879675752 | D125: 0.2398815711 | E125: 0.003305639863 | F125: 0.09109711349
A126: 24.2 | B126: 0.05977090875 | C126: 0.09879675752 | D126: 0.235403082 | E126: 0.003315643945 | F126: 0.09139838105
A127: 24.4 | B127: 0.0600559728 | C127: 0.09879675752 | D127: 0.2309934933 | E127: 0.003325502412 | F127: 0.09169536277
A128: 24.6 | B128: 0.0603389546 | C128: 0.09879675752 | D128: 0.2266522707 | E128: 0.003335217382 | F128: 0.09198810699
A129: 24.8 | B129: 0.06061986936 | C129: 0.09879675752 | D129: 0.2223788633 | E129: 0.003344790945 | F129: 0.09227666155
A130: 25 | B130: 0.06089873219 | C130: 0.09879675752 | D130: 0.2181727051 | E130: 0.003354225158 | F130: 0.09256107377
A131: 25.2 | B131: 0.06117555806 | C131: 0.09879675752 | D131: 0.2140332156 | E131: 0.003363522051 | F131: 0.0928413905
A132: 25.4 | B132: 0.06145036186 | C132: 0.09879675752 | D132: 0.2099598008 | E132: 0.003372683621 | F132: 0.09311765807
A133: 25.6 | B133: 0.06172315835 | C133: 0.09879675752 | D133: 0.2059518544 | E133: 0.003381711839 | F133: 0.09338992232
A134: 25.8 | B134: =$C$2+($D$2-$C$2)*EXP(-$B$2*A134) -> 0.06199396221 | C134: =$C$2 -> 0.09879675752 | D134: =EXP(-B134*A134) -> 0.2020087582 | E134: =$E$2^2/(2*$B$2)*(1-EXP(-2*$B$2*A134)) -> 0.003390608646 | F134: 0.09365822864
A135: 26 | B135: 0.06226278798 | C135: 0.09879675752 | D135: 0.1981298832 | E135: 0.003399375954 | F135: 0.0939226219
A136: 26.2 | B136: 0.06252965012 | C136: 0.09879675752 | D136: 0.1943145904 | E136: 0.003408015648 | F136: 0.09418314653
A137: 26.4 | B137: 0.06279456296 | C137: 0.09879675752 | D137: 0.1905622317 | E137: 0.003416529586 | F137: 0.09443984647
A138: 26.6 | B138: 0.06305754075 | C138: 0.09879675752 | D138: 0.1868721504 | E138: 0.003424919598 | F138: 0.09469276521
A139: 26.8 | B139: 0.06331859762 | C139: 0.09879675752 | D139: 0.183243682 | E139: 0.003433187489 | F139: 0.09494194578
A140: 27 | B140: 0.0635777476 | C140: 0.09879675752 | D140: 0.1796761554 | E140: 0.003441335035 | F140: 0.09518743075
A141: 27.2 | B141: 0.06383500462 | C141: 0.09879675752 | D141: 0.1761688928 | E141: 0.003449363988 | F141: 0.09542926226
A142: 27.4 | B142: 0.06409038251 | C142: 0.09879675752 | D142: 0.1727212111 | E142: 0.003457276075 | F142: 0.09566748199
A143: 27.6 | B143: 0.06434389499 | C143: 0.09879675752 | D143: 0.169332422 | E143: 0.003465072996 | F143: 0.09590213117
A144: 27.8 | B144: 0.06459555569 | C144: 0.09879675752 | D144: 0.166001833 | E144: 0.003472756429 | F144: 0.09613325063
A145: 28 | B145: 0.06484537814 | C145: 0.09879675752 | D145: 0.1627287478 | E145: 0.003480328024 | F145: 0.09636088074
A146: 28.2 | B146: 0.06509337577 | C146: 0.09879675752 | D146: 0.159512467 | E146: 0.00348778941 | F146: 0.09658506146
A147: 28.4 | B147: 0.06533956189 | C147: 0.09879675752 | D147: 0.1563522886 | E147: 0.00349514219 | F147: =1/(A147-A146)*((1+B147)^A147/((1+B146)^A146)-1) -> 0.09680583232
A148: 28.6 | B148: 0.06558394975 | C148: 0.09879675752 | D148: 0.1532475084 | E148: 0.003502387946 | F148: 0.09702323245
A149: 28.8 | B149: 0.06582655248 | C149: 0.09879675752 | D149: 0.1501974208 | E149: 0.003509528236 | F149: 0.09723730054
A150: 29 | B150: 0.06606738313 | C150: 0.09879675752 | D150: 0.1472013192 | E150: 0.003516564594 | F150: 0.0974480749
A151: 29.2 | B151: 0.06630645462 | C151: 0.09879675752 | D151: 0.1442584964 | E151: 0.003523498534 | F151: 0.09765559342
A152: 29.4 | B152: 0.06654377982 | C152: 0.09879675752 | D152: 0.141368245 | E152: 0.003530331546 | F152: 0.0978598936
A153: 29.6 | B153: 0.06677937148 | C153: 0.09879675752 | D153: 0.1385298579 | E153: 0.003537065099 | F153: 0.09806101254
A154: 29.8 | B154: 0.06701324226 | C154: 0.09879675752 | D154: 0.1357426291 | E154: 0.003543700641 | F154: 0.09825898695
A155: 30 | B155: 0.06724540473 | C155: 0.09879675752 | D155: 0.1330058533 | E155: 0.003550239598 | F155: 0.09845385316

Sheet Distribution r
B1: Parameters | C1: a | D1: b/a | E1: sigma
C2: =Data!$B$16 -> 0.03665650862 | D2: =Data!$B$17/Data!$B$16 -> 0.09879675752 | E2: =SQRT(((Data!$B$19)^2)/(2*C2)) -> 0.06318971166
C3: interest rate | D3: probability
C4: -0.15 | D4: =NORMDIST(C4,$D$2,(E2),FALSE) -> 0.002716300246
C5: -0.149 | D5: =NORMDIST(C5,$D$2,($E$2),FALSE) -> 0.002890572849
C6: -0.148 | D6: 0.003075256177
C7: -0.147 | D7: 0.00327091994
C8: -0.146 | D8: 0.003478161661
C9: -0.145 | D9: 0.003697607826
C10: -0.144 | D10: 0.003929915074
C11: -0.143 | D11: 0.004175771423
C12: -0.142 | D12: 0.004435897523
C13: -0.141 | D13: 0.004711047964
C14: -0.14 | D14: 0.005002012602
C15: -0.139 | D15: 0.005309617935
C16: -0.138 | D16: 0.005634728512
C17: -0.137 | D17: 0.005978248381
C18: -0.136 | D18: 0.006341122574
C19: -0.135 | D19: 0.006724338629
C20: -0.134 | D20: 0.007128928154
C21: -0.133 | D21: 0.007555968424
C22: -0.132 | D22: 0.008006584015
C23: -0.131 | D23: 0.008481948485
C24: -0.13 | D24: 0.008983286074
C25: -0.129 | D25: 0.009511873461
C26: -0.128 | D26: 0.01006904154
C27: -0.127 | D27: 0.01065617724
C28: -0.126 | D28: 0.01127472538
C29: -0.125 | D29: 0.01192619056
C30: -0.124 | D30: 0.01261213905
C31: -0.123 | D31: 0.0133342008
C32: -0.122 | D32: 0.01409407135
C33: -0.121 | D33: 0.01489351389
C34: -0.12 | D34: 0.0157343613
C35: -0.119 | D35: 0.01661851818
C36: -0.118 | D36: 0.01754796296
C37: -0.117 | D37: 0.01852475
C38: -0.116 | D38: 0.01955101176
C39: -0.115 | D39: 0.0206289609
C40: -0.114 | D40: 0.02176089246
C41: -0.113 | D41: 0.02294918606
C42: -0.112 | D42: 0.0241963081
C43: -0.111 | D43: 0.02550481391
C44: -0.11 | D44: 0.02687735
C45: -0.109 | D45: 0.02831665625
C46: -0.108 | D46: 0.02982556814
C47: -0.107 | D47: 0.03140701891
C48: -0.106 | D48: 0.03306404179
C49: -0.105 | D49: 0.03479977218
C50: -0.104 | D50: 0.0366174498
C51: -0.103 | D51: 0.03852042085
C52: -0.102 | D52: 0.04051214012
C53: -0.101 | D53: 0.04259617311
C54: -0.1 | D54: 0.04477619806
C55: -0.099 | D55: 0.047056008
C56: -0.098 | D56: 0.04943951269
C57: -0.097 | D57: 0.05193074059
C58: -0.096 | D58: 0.05453384073
C59: -0.095 | D59: 0.05725308448
C60: -0.094 | D60: 0.06009286735
C61: -0.093 | D61: 0.06305771066
C62: -0.092 | D62: 0.0661522631
C63: -0.091 | D63: 0.06938130231
C64: -0.09 | D64: 0.07274973623
C65: -0.089 | D65: 0.07626260449
C66: -0.088 | D66: 0.07992507959
C67: -0.087 | D67: 0.08374246805
C68: -0.086 | D68: 0.08772021136
C69: -0.085 | D69: =NORMDIST(C69,$D$2,($E$2),FALSE) -> 0.09186388688
C70: -0.084 | D70: 0.09617920856
C71: -0.083 | D71: 0.1006720275
C72: -0.082 | D72: 0.1053483326
C73: -0.081 | D73: 0.1102142504
C74: -0.08 | D74: 0.1152760458
C75: -0.079 | D75: 0.1205401215
C76: -0.078 | D76: 0.1260130181
C77: -0.077 | D77: 0.1317014135
C78: -0.076 | D78: 0.1376121225
C79: -0.075 | D79: 0.1437520958
C80: -0.074 | D80: 0.150128419
C81: -0.073 | D81: 0.1567483115
C82: -0.072 | D82: 0.1636191251
C83: -0.071 | D83: 0.170748342
C84: -0.07 | D84: 0.1781435731
C85: -0.069 | D85: 0.1858125558
C86: -0.068 | D86: 0.1937631514
C87: -0.067 | D87: 0.2020033427
C88: -0.066 | D88: 0.2105412307
C89: -0.065 | D89: 0.2193850316
C90: -0.064 | D90: 0.2285430731
C91: -0.063 | D91: 0.2380237906
C92: -0.062 | D92: 0.2478357231
C93: -0.061 | D93: 0.2579875089
C94: -0.06 | D94: 0.2684878806
C95: -0.059 | D95: 0.2793456601
C96: -0.058 | D96: 0.2905697535
C97: -0.057 | D97: 0.302169145
C98: -0.056 | D98: 0.3141528912
C99: -0.055 | D99: 0.3265301144
C100: -0.054 | D100: 0.3393099963
C101: -0.053 | D101: 0.3525017707
C102: -0.052 | D102: 0.3661147159
C103: -0.051 | D103: 0.3801581476
C104: -0.05 | D104: 0.3946414102
C105: -0.049 | D105: 0.4095738687
C106: -0.048 | D106: 0.4249648997
C107: -0.047 | D107: 0.4408238827
C108: -0.046 | D108: 0.4571601901
C109: -0.045 | D109: 0.4739831776
C110: -0.044 | D110: 0.4913021743
C111: -0.043 | D111: 0.5091264717
C112: -0.042 | D112: 0.5274653133
C113: -0.041 | D113: 0.5463278832
C114: -0.04 | D114: 0.5657232946
C115: -0.039 | D115: 0.5856605781
C116: -0.038 | D116: 0.6061486695
C117: -0.037 | D117: 0.6271963972
C118: -0.036 | D118: 0.6488124697
C119: -0.035 | D119: 0.6710054625
C120: -0.034 | D120: 0.6937838046
C121: -0.033 | D121: 0.7171557651
C122: -0.032 | D122: 0.7411294392
C123: -0.031 | D123: 0.7657127345
C124: -0.03 | D124: 0.7909133559
C125: -0.029 | D125: 0.8167387918
C126: -0.028 | D126: 0.8431962991
C127: -0.027 | D127: 0.8702928878
C128: -0.026 | D128: 0.8980353068
C129: -0.025 | D129: 0.9264300277
C130: -0.024 | D130: 0.95548323
C131: -0.023 | D131: 0.9852007854
C132: -0.022 | D132: 1.015588242
C133: -0.021 | D133: =NORMDIST(C133,$D$2,($E$2),FALSE) -> 1.046650808
C134: -0.02 | D134: 1.078393339
C135: -0.019 | D135: 1.110820318
C136: -0.018 | D136: 1.14393584
C137: -0.017 | D137: 1.177743602
C138: -0.016 | D138: 1.21224688
C139: -0.015 | D139: 1.247448515
C140: -0.014 | D140: 1.283350902
C141: -0.013 | D141: 1.31995597
C142: -0.012 | D142: 1.357265167
C143: -0.011 | D143: 1.395279446
C144: -0.01 | D144: 1.433999249
C145: -0.009 | D145: 1.473424496
C146: -0.008 | D146: 1.513554565
C147: -0.007 | D147: 1.55438828
C148: -0.006 | D148: 1.595923898
C149: -0.005 | D149: 1.638159096
C150: -0.004 | D150: 1.681090955
C151: -0.003 | D151: 1.724715951
C152: -0.002 | D152: 1.769029937
C153: -0.001 | D153: 1.81402814
C154: 0 | D154: 1.859705139
C155: 0.001 | D155: 1.906054863
C156: 0.002 | D156: 1.953070577
C157: 0.003 | D157: 2.00074487
C158: 0.004 | D158: 2.049069652
C159: 0.005 | D159: 2.098036139
C160: 0.006 | D160: 2.14763485
C161: 0.007 | D161: 2.197855596
C162: 0.008 | D162: 2.248687479
C163: 0.009 | D163: 2.30011888
C164: 0.01 | D164: 2.352137459
C165: 0.011 | D165: 2.404730148
C166: 0.012 | D166: 2.457883151
C167: 0.013 | D167: 2.511581938
C168: 0.014 | D168: 2.565811246
C169: 0.015 | D169: 2.620555076
C170: 0.016 | D170: 2.675796699
C171: 0.017 | D171: 2.731518649
C172: 0.018 | D172: 2.787702732
C173: 0.019 | D173: 2.844330025
C174: 0.02 | D174: 2.901380883
C175: 0.021 | D175: 2.958834944
C176: 0.022 | D176: 3.016671132
C177: 0.023 | D177: 3.074867669
C178: 0.024 | D178: 3.133402078
C179: 0.025 | D179: 3.192251198
C180: 0.026 | D180: 3.251391189
C181: 0.027 | D181: 3.310797548
C182: 0.028 | D182: 3.370445116
C183: 0.029 | D183: 3.430308098
C184: 0.03 | D184: 3.490360073
C185: 0.031 | D185: 3.550574012
C186: 0.032 | D186: 3.610922291
C187: 0.033 | D187: 3.671376713
C188: 0.034 | D188: 3.731908525
C189: 0.035 | D189: 3.792488438
C190: 0.036 | D190: 3.853086646
C191: 0.037 | D191: 3.913672851
C192: 0.038 | D192: 3.974216282
C193: 0.039 | D193: 4.034685721
C194: 0.04 | D194: 4.095049529
C195: 0.041 | D195: 4.155275666
C196: 0.042 | D196: 4.215331724
C197: 0.043 | D197: =NORMDIST(C197,$D$2,($E$2),FALSE) -> 4.27518495
C198: 0.044 | D198: 4.334802276
C199: 0.045 | D199: 4.394150345
C200: 0.046 | D200: 4.453195546
... 266 more rows
